fUSD/lending_fUSD_20240630
["ID","MTS","AMOUNT","RATE_DAILY","PERIOD"]
[330718417,1719735053615,-511.93989229,0.00013998,3]
[330718418,1719735053625,-588.99500053,0.00013998,3]
[330718419,1719735053635,-542.99656366,0.00013998,3]
[330718420,1719735053644,-500.0,0.00013998,3]
[330718421,1719735053654,-501.60587514,0.00013998,3]
[330718422,1719735053663,-499.46951415,0.00013998,3]
[330718423,1719735053672,-504.05515857,0.00013998,3]
[330718424,1719735053683,-503.53890534,0.00013998,3]
[330718425,1719735053692,-503.70720423,0.00013998,3]
[330718426,1719735053701,-299.75935801,0.00013998,3]
[330718427,1719735053710,-500.0,0.00013998,3]
[330718428,1719735053719,-500.92823596,0.00013998,3]
[330718429,1719735053729,-500.0,0.00013998,3]
[330718430,1719735053738,-500.0,0.00013998,3]
[330718431,1719735053747,-506.37064315,0.00013998,3]
[330718432,1719735053756,-503.94729479,0.00013998,3]
[330718433,1719735053766,-501.20496059,0.00013998,3]
[330718434,1719735053775,-500.0,0.00013998,3]
[330718435,1719735053784,-509.83405617,0.00013998,2]
[330718436,1719735053796,-504.04863203,0.00013998,3]
[330718437,1719735053806,-501.65804161,0.00013998,3]
[330718438,1719735053816,-501.96262081,0.00013998,3]
[330718439,1719735053827,-507.18086092,0.00013998,3]
[330718440,1719735053836,-521.61704176,0.00013998,3]
[330718441,1719735053845,-500.0,0.00013998,3]
[330718442,1719735053860,-642.60882718,0.00013998,3]
[330718443,1719735053870,-249.39946754,0.00013998,3]
[330718444,1719735053879,-502.08446874,0.00013998,3]
[330718445,1719735053888,-503.94017993,0.00013998,3]
[330718446,1719735053898,-500.0,0.00013998,3]
[330718447,1719735053907,-406.23634047,0.00013998,3]
[330718448,1719735053916,-500.0,0.00013998,3]
[330718449,1719735053926,-500.0,0.00013998,3]
[330718450,1719735053940,-500.0,0.00013998,3]
[330718451,1719735053952,-504.62432671,0.00013998,3]
[330718452,1719735053961,-503.0520455,0.00013998,3]
[330718453,1719735053970,-618.19987347,0.00013998,3]
[330718454,1719735053979,-502.09630587,0.00013998,3]
[330718455,1719735053987,-500.0,0.00013998,3]
[330718456,1719735053996,-502.27796326,0.00013998,3]
[330718457,1719735054005,-502.19398481,0.00013998,3]
[330718458,1719735054015,-4083.56,0.00013998,2]
[330718459,1719735054024,-501.13575542,0.00013999,3]
[330718460,1719735054032,-501.77480285,0.00013999,3]
[330718461,1719735054041,-501.37025922,0.00013999,3]
[330718462,1719735054050,-501.28094687,0.00013999,3]
[330718463,1719735054060,-501.76064343,0.00013999,3]
[330718464,1719735054069,-500.0,0.00013999,3]
[330718465,1719735054078,-442.53158359,0.00013999,3]
[330718466,1719735054088,-501.63024683,0.00013999,3]
[330718467,1719735054097,-503.69998713,0.00013999,3]
[330718468,1719735054107,-500.0,0.00013999,3]
[330718469,1719735054117,-501.12683344,0.00013999,3]
[330718470,1719735054127,-500.0,0.00013999,3]
[330718471,1719735054137,-323.55902806,0.00013999,3]
[330718472,1719735054146,-500.18879037,0.00013999,3]
[330718473,1719735054155,-500.31016175,0.00013999,3]
[330718474,1719735054164,-501.7883029,0.00013999,3]
[330718475,1719735054174,-500.99052682,0.00013999,3]
[330718476,1719735054185,-200.6424686,0.00013999,3]
[330718477,1719735054194,-499.0539873,0.00013999,3]
[330718478,1719735054203,-500.20538812,0.00013999,3]
[330718479,1719735054214,-500.0,0.00013999,3]
[330718480,1719735054227,-501.53861793,0.00013999,3]
[330718481,1719735054236,-501.30812027,0.00013999,3]
[330718482,1719735054246,-500.31551796,0.00013999,3]
[330718483,1719735054255,-502.15371263,0.00013999,3]
[330718484,1719735054265,-500.78455842,0.00013999,3]
[330718485,1719735054276,-502.03439762,0.00013999,3]
[330718486,1719735054286,-502.92098081,0.00013999,3]
[330718487,1719735054296,-501.25196168,0.00013999,3]
[330718488,1719735054306,-502.2893282,0.00013999,3]
[330718489,1719735054316,-501.66861287,0.00013999,3]
[330718490,1719735054325,-501.99532825,0.00013999,3]
[330718491,1719735054335,-496.36409555,0.00013999,3]
[330718492,1719735054345,-501.61764756,0.00013999,3]
[330718493,1719735054354,-500.0,0.00013999,3]
[330718494,1719735054363,-503.40188114,0.00013999,3]
[330718495,1719735054373,-500.0,0.00013999,3]
[330718496,1719735054382,-500.0,0.00013999,3]
[330718497,1719735054393,-502.76920556,0.00013999,3]
[330718498,1719735054403,-502.38971188,0.00013999,3]
[330718499,1719735054412,-1066.1268326,0.00013999,5]
[330718500,1719735054423,-503.46322339,0.00013999,3]
[330718501,1719735054435,-500.0,0.00013999,3]
[330718502,1719735054444,-502.32690176,0.00013999,3]
[330718503,1719735054454,-502.36496291,0.00013999,3]
[330718504,1719735054463,-500.0,0.00013999,3]
[330718505,1719735054472,-501.72835522,0.00013999,3]
[330718506,1719735054481,-503.59831524,0.00013999,3]
[330718507,1719735054491,-503.44557818,0.00013999,3]
[330718508,1719735054500,-503.51430709,0.00013999,3]
[330718509,1719735054510,-502.80178978,0.00013999,3]
[330718510,1719735054520,-500.0,0.00013999,3]
[330718511,1719735054529,-501.6879415,0.00013999,3]
[330718512,1719735054539,-501.34391529,0.00013999,3]
[330718513,1719735054548,-501.5904371,0.00013999,3]
[330718514,1719735054557,-500.4442262,0.00013999,3]
[330718515,1719735054571,-501.70784716,0.00013999,3]
[330718516,1719735054581,-501.6130493,0.00013999,3]
[330718517,1719735054592,-500.0,0.00013999,2]
[330718518,1719735054602,-529.35,0.00013999,2]
[330718519,1719735054612,-529.35,0.00013999,2]
[330718520,1719735054622,-529.35,0.00013999,2]
[330718521,1719735054631,-529.35,0.00013999,2]
[330718522,1719735054641,-529.35,0.00013999,2]
[330718523,1719735054651,-529.35,0.00013999,2]
[330718524,1719735054660,-529.35,0.00013999,2]
[330718525,1719735054671,-529.35,0.00013999,2]
[330718526,1719735054681,-529.35,0.00013999,2]
[330718527,1719735054691,-529.35,0.00013999,2]
[330718528,1719735054702,-529.35,0.00013999,2]
[330718529,1719735054712,-529.35,0.00013999,2]
[330718530,1719735054722,-529.35,0.00013999,2]
[330718531,1719735054731,-529.35,0.00013999,2]
[330718532,1719735054741,-529.35,0.00013999,2]
[330718533,1719735054751,-529.35,0.00013999,2]
[330718534,1719735054760,-529.35,0.00013999,2]
[330718535,1719735054770,-529.35,0.00013999,2]
[330718536,1719735054779,-529.35,0.00013999,2]
[330718537,1719735054789,-529.35,0.00013999,2]
[330718538,1719735054798,-529.35,0.00013999,2]
[330718539,1719735054808,-529.35,0.00013999,2]
[330718540,1719735054817,-529.39246885,0.00013999,2]
[330718541,1719735054827,-500.0,0.00013999,3]
[330718542,1719735054836,-500.0,0.00013999,3]
[330718543,1719735054846,-501.49491363,0.00013999,3]
[330718544,1719735054860,-2014.43062797,0.00013999,3]
[330718545,1719735054870,-500.77763477,0.00013999,3]
[330718546,1719735054879,-500.0,0.00013999,3]
[330718547,1719735054888,-500.0,0.00013999,3]
[330718548,1719735054898,-500.0,0.00013999,3]
[330718549,1719735054907,-500.0,0.00013999,3]
[330718550,1719735054917,-500.0,0.00013999,3]
[330718551,1719735054931,-500.0,0.00013999,3]
[330718552,1719735054940,-500.0,0.00013999,3]
[330718553,1719735054950,-500.0,0.00013999,3]
[330718554,1719735054959,-500.0,0.00013999,3]
[330718555,1719735054968,-500.0,0.00013999,3]
[330718556,1719735054978,-500.0,0.00013999,3]
[330718557,1719735054987,-500.0,0.00013999,3]
[330718558,1719735054996,-500.0,0.00013999,3]
[330718559,1719735055006,-500.0,0.00013999,3]
[330718560,1719735055015,-500.0,0.00013999,3]
[330718561,1719735055025,-14694.08,0.00013999,3]
[330718562,1719735055035,-500.0,0.00013999,3]
[330718563,1719735055045,-500.0,0.00013999,3]
[330718564,1719735055054,-500.0,0.00013999,3]
[330718565,1719735055064,-504.17507471,0.00013999,3]
[330718566,1719735055073,-500.0,0.00013999,3]
[330718567,1719735055083,-500.0,0.00013999,3]
[330718568,1719735055093,-500.0,0.00013999,3]
[330718569,1719735055103,-500.0,0.00013999,3]
[330718570,1719735055112,-500.0,0.00013999,3]
[330718571,1719735055122,-500.0,0.00013999,3]
[330718572,1719735055131,-500.0,0.00013999,3]
[330718573,1719735055141,-500.0,0.00013999,3]
[330718574,1719735055150,-614.88,0.00013999,3]
[330718575,1719735055160,-500.0,0.00013999,3]
[330718576,1719735055170,-500.0,0.00013999,3]
[330718577,1719735055181,-6858.26,0.00013999,3]
[330718578,1719735055191,-500.0,0.00013999,2]
[330718579,1719735055201,-500.0,0.00013999,2]
[330718580,1719735055212,-500.0,0.00013999,2]
[330718581,1719735055222,-527.97,0.00013999,2]
[330718582,1719735055232,-500.0,0.00013999,3]
[330718583,1719735055242,-500.0,0.00013999,3]
[330718584,1719735055252,-500.0,0.00013999,3]
[330718585,1719735055262,-500.0,0.00013999,3]
[330718586,1719735055272,-500.0,0.00013999,3]
[330718587,1719735055282,-500.0,0.00013999,3]
[330718588,1719735055292,-500.0,0.00013999,3]
[330718589,1719735055302,-500.0,0.00013999,3]
[330718590,1719735055313,-151.0,0.00013999,2]
[330718591,1719735055323,-172.83,0.00013999,3]
[330718592,1719735055332,-151.0,0.00013999,2]
[330718593,1719735055342,-500.0,0.00013999,3]
[330718594,1719735055353,-500.0,0.00013999,3]
[330718595,1719735055363,-500.0,0.00013999,3]
[330718596,1719735055373,-38388.24,0.00013999,3]
[330718597,1719735055383,-500.0,0.00013999,3]
[330718598,1719735055393,-500.0,0.00013999,3]
[330718599,1719735055403,-500.0,0.00013999,3]
[330718600,1719735055413,-500.0,0.00013999,3]
[330718601,1719735055423,-1490.43083,0.00013999,2]
[330718602,1719735055434,-1490.43083,0.00013999,2]
[330718603,1719735055445,-1490.43084,0.00013999,2]
[330718604,1719735055454,-19267.62,0.00013999,3]
[330718605,1719735055465,-500.0,0.00013999,3]
[330718606,1719735055475,-500.0,0.00013999,3]
[330718607,1719735055485,-4083.56,0.00013999,2]
[330718608,1719735055495,-4083.56,0.00013999,2]
[330718609,1719735055505,-4083.56,0.00013999,2]
[330718610,1719735055514,-4083.56,0.00013999,2]
[330718611,1719735055525,-4083.56,0.00013999,2]
[330718612,1719735055535,-4083.56,0.00013999,2]
[330718613,1719735055545,-4083.56,0.00013999,2]
[330718614,1719735055555,-4083.56,0.00013999,2]
[330718615,1719735055565,-4083.56,0.00013999,2]
[330718616,1719735055575,-4083.56,0.00013999,2]
[330718617,1719735055585,-4083.56,0.00013999,2]
[330718618,1719735055595,-4083.56,0.00013999,2]
[330718619,1719735055605,-500.0,0.00013999,3]
[330718620,1719735055615,-4083.56,0.00013999,2]
[330718621,1719735055625,-4083.56,0.00013999,2]
[330718622,1719735055635,-4083.56,0.00013999,2]
[330718623,1719735055644,-4083.56,0.00013999,2]
[330718624,1719735055654,-4083.56,0.00013999,2]
[330718625,1719735055664,-4083.56,0.00013999,2]
[330718626,1719735055673,-4083.56,0.00013999,2]
[330718627,1719735055685,-4028112.21876385,0.00014,2]
[330718628,1719735055694,-160.644313,0.00014,2]
[330718629,1719735055704,-151.0,0.00014,2]
[330718630,1719735055714,-151.0,0.00014,2]
[330718631,1719735055724,-150.0,0.00014,2]
[330718632,1719735055733,-519.91,0.00014007,3]
[330718633,1719735055743,-500.0,0.00014007,3]
[330718634,1719735055753,-341.5,0.00014007,3]
[330718635,1719735055763,-500.0,0.00014007,3]
[330718636,1719735055772,-500.0,0.00014007,3]
[330718637,1719735055781,-249.0,0.00014007,3]
[330718638,1719735055791,-500.0,0.00014007,3]
[330718639,1719735055801,-379.3,0.00014007,3]
[330718640,1719735055811,-535.49,0.00014007,3]
[330718641,1719735055821,-500.0,0.00014007,3]
[330718642,1719735055830,-331.70877794,0.00014007,3]
[330718643,1719735055840,-500.0,0.00014007,3]
[330718644,1719735055852,-500.0,0.00014007,3]
[330718645,1719735055866,-260.26,0.00014007,3]
[330718646,1719735055876,-268.59283291,0.00014007,3]
[330718647,1719735055885,-585.82,0.00014007,3]
[330718648,1719735055895,-416.01,0.00014007,3]
[330718649,1719735055905,-500.0,0.00014007,3]
[330718650,1719735055915,-500.0,0.00014007,3]
[330718651,1719735055924,-500.0,0.00014007,3]
[330718652,1719735055934,-500.0,0.00014007,3]
[330718653,1719735055944,-281.61,0.00014007,3]
[330718654,1719735055953,-500.0,0.00014007,3]
[330718655,1719735055963,-500.0,0.00014007,3]
[330718656,1719735055973,-245.7,0.00014007,3]
[330718657,1719735055983,-296.35,0.00014007,3]
[330718658,1719735055993,-500.0,0.00014007,3]
[330718659,1719735056002,-500.0,0.00014007,3]
[330718660,1719735056012,-301.59399926,0.00014007,3]
[330718661,1719735056022,-486.08,0.00014007,3]
[330718662,1719735056031,-500.0,0.00014007,3]
[330718663,1719735056043,-500.0,0.00014007,3]
[330718664,1719735056052,-415.23,0.00014007,3]
[330718665,1719735056063,-500.0,0.00014007,3]
[330718666,1719735056073,-500.0,0.00014007,3]
[330718667,1719735056084,-500.0,0.00014007,3]
[330718668,1719735056095,-425.15,0.00014007,3]
[330718669,1719735056104,-500.0,0.00014007,3]
[330718670,1719735056114,-500.0,0.00014007,3]
[330718671,1719735056124,-249.3813852,0.00014007,3]
[330718672,1719735056133,-500.0,0.00014007,3]
[330718673,1719735056143,-431.13,0.00014007,3]
[330718674,1719735056153,-500.0,0.00014007,3]
[330718675,1719735056165,-500.0,0.00014007,3]
[330718676,1719735056175,-500.0,0.00014007,3]
[330718677,1719735056188,-445.86,0.00014007,3]
[330718678,1719735056197,-500.0,0.00014007,3]
[330718679,1719735056207,-500.0,0.00014007,3]
[330718680,1719735056216,-495.73,0.00014007,3]
[330718681,1719735056225,-463.05,0.00014007,3]
[330718682,1719735056235,-263.67421448,0.00014007,3]
[330718683,1719735056245,-500.0,0.00014007,3]
[330718684,1719735056254,-500.0,0.00014007,3]
[330718685,1719735056264,-208.6,0.00014007,3]
[330718686,1719735056274,-500.0,0.00014007,3]
[330718687,1719735056284,-500.0,0.00014007,3]
[330718688,1719735056294,-500.0,0.00014007,3]
[330718689,1719735056304,-500.0,0.00014007,3]
[330718690,1719735056313,-287.42,0.00014007,3]
[330718691,1719735056325,-500.0,0.00014007,3]
[330718692,1719735056335,-500.0,0.00014007,3]
[330718693,1719735056345,-500.0,0.00014007,3]
[330718694,1719735056354,-175.72,0.00014007,3]
[330718695,1719735056365,-500.0,0.00014007,3]
[330718696,1719735056374,-500.0,0.00014007,3]
[330718697,1719735056385,-500.0,0.00014007,3]
[330718698,1719735056395,-150.5,0.00014007,3]
[330718699,1719735056405,-500.0,0.00014007,3]
[330718700,1719735056414,-296.22530297,0.00014007,3]
[330718701,1719735056424,-150.31,0.00014007,3]
[330718702,1719735056436,-253.06,0.00014007,3]
[330718703,1719735056446,-500.0,0.00014007,3]
[330718704,1719735056455,-500.0,0.00014007,3]
[330718705,1719735056464,-500.0,0.00014007,3]
[330718706,1719735056476,-586.45,0.00014007,3]
[330718707,1719735056486,-500.0,0.00014007,3]
[330718708,1719735056495,-500.0,0.00014007,3]
[330718709,1719735056504,-273.71,0.00014007,3]
[330718710,1719735056514,-500.0,0.00014007,3]
[330718711,1719735056523,-375.42,0.00014007,3]
[330718712,1719735056531,-510.64611737,0.00014007,3]
[330718713,1719735056541,-500.0,0.00014007,3]
[330718714,1719735056551,-605.45,0.00014007,3]
[330718715,1719735056561,-500.0,0.00014007,3]
[330718716,1719735056574,-500.0,0.00014007,3]
[330718717,1719735056584,-500.0,0.00014007,3]
[330718718,1719735056598,-470.49,0.00014007,3]
[330718719,1719735056608,-562.56,0.00014007,3]
[330718720,1719735056618,-500.0,0.00014007,3]
[330718721,1719735056627,-616.6,0.00014007,3]
[330718722,1719735056637,-500.0,0.00014007,3]
[330718723,1719735056648,-500.0,0.00014007,3]
[330718724,1719735056658,-169.0,0.00014007,3]
[330718725,1719735056668,-500.0,0.00014007,3]
[330718726,1719735056679,-500.0,0.00014007,3]
[330718727,1719735056692,-259.76,0.00014007,3]
[330718728,1719735056702,-500.0,0.00014007,3]
[330718729,1719735056711,-500.0,0.00014007,3]
[330718730,1719735056720,-500.0,0.00014007,3]
[330718731,1719735056730,-580.97,0.00014007,3]
[330718732,1719735056739,-517.17,0.00014007,3]
[330718733,1719735056748,-500.0,0.00014007,3]
[330718734,1719735056758,-500.0,0.00014007,3]
[330718735,1719735056768,-500.0,0.00014007,3]
[330718736,1719735056777,-500.0,0.00014007,3]
[330718737,1719735056787,-23056.87,0.00014007,3]
[330718738,1719735056795,-500.0,0.00014007,3]
[330718739,1719735056805,-500.0,0.00014007,3]
[330718740,1719735056815,-364.38,0.00014007,3]
[330718741,1719735056824,-295.69,0.00014007,3]
[330718742,1719735056834,-500.0,0.00014007,3]
[330718743,1719735056844,-500.0,0.00014007,3]
[330718744,1719735056859,-199.27,0.00014007,3]
[330718745,1719735056869,-630.84,0.00014007,3]
[330718746,1719735056878,-154.93709149,0.00014007,3]
[330718747,1719735056890,-357.90114143,0.00014007,3]
[330718748,1719735056902,-500.0,0.00014007,3]
[330718749,1719735056912,-429.7,0.00014007,3]
[330718750,1719735056922,-166.54760231,0.00014007,3]
[330718751,1719735056937,-500.0,0.00014007,3]
[330718752,1719735056946,-243.66458224,0.00014007,3]
[330718753,1719735056956,-197.64,0.00014007,3]
[330718754,1719735056965,-500.0,0.00014007,3]
[330718755,1719735056975,-163.32614289,0.00014007,3]
[330718756,1719735056985,-235.3,0.00014007,3]
[330718757,1719735056994,-500.0,0.00014007,3]
[330718758,1719735057003,-297.32,0.00014007,3]
[330718759,1719735057013,-500.0,0.00014007,3]
[330718760,1719735057023,-500.0,0.00014007,3]
[330718761,1719735057032,-511.22,0.00014007,3]
[330718762,1719735057042,-500.0,0.00014007,3]
[330718763,1719735057051,-500.0,0.00014007,3]
[330718764,1719735057061,-500.0,0.00014007,3]
[330718765,1719735057071,-329.74,0.00014007,3]
[330718766,1719735057081,-561.78,0.00014007,3]
[330718767,1719735057089,-500.0,0.00014007,3]
[330718768,1719735057099,-357.57,0.00014007,3]
[330718769,1719735057109,-500.0,0.00014007,3]
[330718770,1719735057119,-458.67,0.00014007,3]
[330718771,1719735057129,-500.0,0.00014007,3]
[330718772,1719735057139,-499.05,0.00014007,3]
[330718773,1719735057149,-500.0,0.00014007,3]
[330718774,1719735057158,-500.0,0.00014007,3]
[330718775,1719735057168,-500.0,0.00014007,3]
[330718776,1719735057178,-500.0,0.00014007,3]
[330718777,1719735057188,-541.62,0.00014007,3]
[330718778,1719735057198,-500.0,0.00014007,3]
[330718779,1719735057208,-500.0,0.00014007,3]
[330718780,1719735057218,-413.85936725,0.00014007,3]
[330718781,1719735057228,-500.0,0.00014007,3]
[330718782,1719735057238,-185.75016998,0.00014007,3]
[330718783,1719735057248,-582.09,0.00014007,3]
[330718784,1719735057258,-500.0,0.00014007,3]
[330718785,1719735057268,-457.75,0.00014007,3]
[330718786,1719735057278,-612.09728752,0.00014007,3]
[330718787,1719735057288,-500.0,0.00014007,3]
[330718788,1719735057299,-500.0,0.00014007,3]
[330718789,1719735057308,-500.0,0.00014007,3]
[330718790,1719735057318,-234.51,0.00014007,3]
[330718791,1719735057328,-500.0,0.00014007,3]
[330718792,1719735057339,-267.8,0.00014007,3]
[330718793,1719735057350,-500.0,0.00014007,3]
[330718794,1719735057360,-500.0,0.00014007,3]
[330718795,1719735057371,-500.0,0.00014007,3]
[330718796,1719735057381,-216.0689,0.00014007,3]
[330718797,1719735057391,-500.0,0.00014007,3]
[330718798,1719735057400,-500.0,0.00014007,3]
[330718799,1719735057410,-500.0,0.00014007,3]
[330718800,1719735057419,-289.45953158,0.00014007,3]
[330718801,1719735057429,-152.88033894,0.00014007,3]
[330718802,1719735057442,-500.0,0.00014007,3]
[330718803,1719735057451,-500.0,0.00014007,3]
[330718804,1719735057462,-39002.17,0.00014016,3]
[330718805,1719735057471,-13418.74,0.00014016,3]
[330718806,1719735057480,-5295.8,0.00014016,3]
[330718807,1719735057491,-500.0,0.00014016,3]
[330718808,1719735057500,-4801.03,0.00014016,3]
[330718809,1719735057511,-500.0,0.00014016,3]
[330718810,1719735057521,-500.0,0.00014016,3]
[330718811,1719735057532,-500.0,0.00014016,3]
[330718812,1719735057541,-500.0,0.00014016,3]
[330718813,1719735057551,-500.0,0.00014016,3]
[330718814,1719735057561,-500.0,0.00014016,3]
[330718815,1719735057576,-500.0,0.00014016,3]
[330718816,1719735057586,-500.0,0.00014016,3]
[330718817,1719735057597,-500.0,0.00014016,3]
[330718818,1719735057607,-500.0,0.00014016,3]
[330718819,1719735057617,-273.24,0.00014016,3]
[330718820,1719735057627,-8386.89,0.00014016,3]
[330718821,1719735057638,-500.0,0.00014016,3]
[330718822,1719735057648,-500.0,0.00014016,3]
[330718823,1719735057658,-640.91864929,0.00014016,3]
[330718824,1719735057668,-500.0,0.00014016,3]
[330718825,1719735057678,-541.84,0.00014016,3]
[330718826,1719735057691,-173.21,0.00014099,2]
[330718827,1719735057700,-500.0,0.00014107,3]
[330718828,1719735057710,-500.0,0.00014107,3]
[330718829,1719735057720,-256.85,0.00014107,3]
[330718830,1719735057731,-500.0,0.00014107,3]
[330718831,1719735057742,-500.0,0.00014107,3]
[330718832,1719735057752,-500.0,0.00014107,3]
[330718833,1719735057763,-500.0,0.00014107,3]
[330718834,1719735057773,-30379.71,0.00014107,3]
[330718835,1719735057784,-539.41,0.00014107,3]
[330718836,1719735057794,-500.0,0.00014107,3]
[330718837,1719735057803,-500.0,0.00014107,3]
[330718838,1719735057814,-500.0,0.00014107,3]
[330718839,1719735057824,-500.0,0.00014107,3]
[330718840,1719735057834,-500.0,0.00014107,3]
[330718841,1719735057843,-583.33,0.00014107,3]
[330718842,1719735057854,-500.0,0.00014107,3]
[330718843,1719735057869,-500.0,0.00014107,3]
[330718844,1719735057879,-630.22,0.00014107,3]
[330718845,1719735057890,-500.0,0.00014107,3]
[330718846,1719735057900,-500.0,0.00014107,3]
[330718847,1719735057910,-500.0,0.00014107,3]
[330718848,1719735057921,-329.73836967,0.00014107,3]
[330718849,1719735057931,-500.0,0.00014107,3]
[330718850,1719735057943,-500.0,0.00014107,3]
[330718851,1719735057953,-5371.12,0.00014107,3]
[330718852,1719735057962,-500.0,0.00014107,3]
[330718853,1719735057972,-500.0,0.00014107,3]
[330718854,1719735057982,-500.0,0.00014107,3]
[330718855,1719735057993,-329.49,0.00014107,3]
[330718856,1719735058003,-500.0,0.00014107,3]
[330718857,1719735058013,-9052.16,0.00014107,3]
[330718858,1719735058023,-500.0,0.00014107,3]
[330718859,1719735058033,-500.0,0.00014107,3]
[330718860,1719735058043,-500.0,0.00014107,3]
[330718861,1719735058053,-500.0,0.00014107,3]
[330718862,1719735058063,-627.8,0.00014107,3]
[330718863,1719735058073,-500.0,0.00014107,3]
[330718864,1719735058085,-24110.17,0.00014107,3]
[330718865,1719735058094,-500.0,0.00014107,3]
[330718866,1719735058104,-500.0,0.00014107,3]
[330718867,1719735058114,-500.0,0.00014107,3]
[330718868,1719735058123,-154.56474222,0.00014107,3]
[330718869,1719735058133,-351.35457475,0.00014107,3]
[330718870,1719735058143,-500.0,0.00014107,3]
[330718871,1719735058152,-500.0,0.00014107,3]
[330718872,1719735058163,-500.0,0.00014107,3]
[330718873,1719735058173,-500.0,0.00014107,3]
[330718874,1719735058185,-500.0,0.00014107,3]
[330718875,1719735058194,-559.18945642,0.00014107,3]
[330718876,1719735058203,-500.0,0.00014107,3]
[330718877,1719735058213,-500.0,0.00014107,3]
[330718878,1719735058222,-176.11477603,0.00014107,3]
[330718879,1719735058232,-500.0,0.00014107,3]
[330718880,1719735058242,-500.0,0.00014107,3]
[330718881,1719735058252,-500.0,0.00014107,3]
[330718882,1719735058262,-500.0,0.00014107,3]
[330718883,1719735058272,-500.0,0.00014107,3]
[330718884,1719735058282,-500.0,0.00014107,3]
[330718885,1719735058292,-500.0,0.00014107,3]
[330718886,1719735058302,-500.0,0.00014107,3]
[330718887,1719735058312,-500.0,0.00014107,3]
[330718888,1719735058322,-500.0,0.00014107,3]
[330718889,1719735058331,-500.0,0.00014107,3]
[330718890,1719735058341,-500.0,0.00014107,3]
[330718891,1719735058350,-500.0,0.00014107,3]
[330718892,1719735058360,-500.0,0.00014107,3]
[330718893,1719735058370,-500.0,0.00014107,3]
[330718894,1719735058380,-390.61,0.00014107,3]
[330718895,1719735058390,-19885.13,0.00014107,3]
[330718896,1719735058400,-500.0,0.00014107,3]
[330718897,1719735058409,-602.3,0.00014107,3]
[330718898,1719735058419,-500.0,0.00014107,3]
[330718899,1719735058428,-500.0,0.00014107,3]
[330718900,1719735058439,-16681.86,0.00014107,3]
[330718901,1719735058449,-500.0,0.00014107,3]
[330718902,1719735058459,-500.0,0.00014108,3]
[330718903,1719735058468,-472.41,0.00014108,3]
[330718904,1719735058478,-500.0,0.00014108,3]
[330718905,1719735058488,-316.23109683,0.00014108,3]
[330718906,1719735058498,-500.0,0.00014108,3]
[330718907,1719735058508,-369.1,0.00014108,3]
[330718908,1719735058518,-500.0,0.00014108,3]
[330718909,1719735058528,-500.0,0.00014108,3]
[330718910,1719735058538,-481.49,0.00014108,3]
[330718911,1719735058547,-360.33553909,0.00014108,3]
[330718912,1719735058557,-165.47,0.00014108,3]
[330718913,1719735058566,-500.0,0.00014108,3]
[330718914,1719735058578,-233.06868461,0.00014108,3]
[330718915,1719735058588,-553.93,0.00014108,3]
[330718916,1719735058597,-567.74,0.00014108,3]